[Event "*** Titled Tuesday 3|2 Blitz"]
[Site "Chess.com"]
[Date "2016.05.03"]
[Round "6"]
[White "NaziPaiki"]
[Black "LyonBeast"]
[Result "0-1"]
[WhiteElo "2691"]
[BlackElo "2795"]
[TimeControl "180+2"]
[EndTime "12:16:58 PDT"]
[Termination "LyonBeast won by resignation"]

1. d4 {[%clk 0:03:01.9]} 1... Nf6 {[%clk 0:02:59.1]} 2. c4 {[%clk 0:03:03]} 2...
g6 {[%clk 0:02:58.1]} 3. Nc3 {[%clk 0:03:02.4]} 3... d5 {[%clk 0:02:59.1]} 4.
cxd5 {[%clk 0:03:02.2]} 4... Nxd5 {[%clk 0:03:01]} 5. Bd2 {[%clk 0:03:02.3]}
5... Bg7 {[%clk 0:03:00.2]} 6. e3 {[%clk 0:03:02.7]} 6... O-O {[%clk 0:02:58.8]}
7. Nf3 {[%clk 0:03:00.2]} 7... c5 {[%clk 0:02:53.7]} 8. Bc4 {[%clk 0:02:55.2]}
8... Nb6 {[%clk 0:02:50.4]} 9. Be2 {[%clk 0:02:55.9]} 9... cxd4 {[%clk
0:02:49.6]} 10. exd4 {[%clk 0:02:56.2]} 10... Nc6 {[%clk 0:02:49.7]} 11. Be3
{[%clk 0:02:55.8]} 11... Bg4 {[%clk 0:02:41.1]} 12. O-O {[%clk 0:02:51.7]} 12...
Bxf3 {[%clk 0:02:25.7]} 13. Bxf3 {[%clk 0:02:52.9]} 13... Nxd4 {[%clk
0:02:24.7]} 14. Bxb7 {[%clk 0:02:44.3]} 14... Rb8 {[%clk 0:02:24.9]} 15. Be4
{[%clk 0:02:39.6]} 15... Nc4 {[%clk 0:02:22]} 16. Na4 {[%clk 0:02:36.1]} 16...
Nxe3 {[%clk 0:02:09.9]} 17. fxe3 {[%clk 0:02:35.1]} 17... Ne6 {[%clk 0:02:08]}
18. Bd5 {[%clk 0:02:35.4]} 18... Qd6 {[%clk 0:02:04.2]} 19. Bb3 {[%clk 0:02:29]}
19... Qe5 {[%clk 0:02:01.9]} 20. Qf3 {[%clk 0:02:28.4]} 20... Bh6 {[%clk
0:01:51.9]} 21. Rae1 {[%clk 0:02:29]} 21... Rb4 {[%clk 0:01:47.7]} 22. Nc3
{[%clk 0:02:21.8]} 22... Kg7 {[%clk 0:01:29.7]} 23. Bxe6 {[%clk 0:02:10.4]}
23... Qxe6 {[%clk 0:01:29]} 24. Re2 {[%clk 0:02:11]} 24... Bg5 {[%clk
0:01:21.1]} 25. Kh1 {[%clk 0:02:05.9]} 25... h5 {[%clk 0:01:13.8]} 26. e4 {[%clk
0:02:05.2]} 26... Qe5 {[%clk 0:01:08.1]} 27. g3 {[%clk 0:02:04.3]} 27... e6
{[%clk 0:01:07.2]} 28. a3 {[%clk 0:02:00.7]} 28... Rb3 {[%clk 0:01:05.5]} 29.
Rd1 {[%clk 0:01:59.3]} 29... Rb7 {[%clk 0:00:52.5]} 30. Kg2 {[%clk 0:01:55.9]}
30... h4 {[%clk 0:00:53.7]} 31. Rc2 {[%clk 0:01:51.2]} 31... hxg3 {[%clk
0:00:54.2]} 32. hxg3 {[%clk 0:01:50.1]} 32... Rd8 {[%clk 0:00:55.2]} 33. Rxd8
{[%clk 0:01:42.5]} 33... Bxd8 {[%clk 0:00:57.1]} 34. Rd2 {[%clk 0:01:42]} 34...
Bg5 {[%clk 0:00:57.2]} 35. Rf2 {[%clk 0:01:39.3]} 35... a5 {[%clk 0:00:55.6]}
36. Nd1 {[%clk 0:01:34.6]} 36... Bf6 {[%clk 0:00:49.5]} 37. Nc3 {[%clk
0:01:31.7]} 37... Rd7 {[%clk 0:00:43.3]} 38. Qf4 {[%clk 0:01:29.7]} 38... g5
{[%clk 0:00:40.6]} 39. Qf3 {[%clk 0:01:29.9]} 39... Bd8 {[%clk 0:00:38.6]} 40.
Rc2 {[%clk 0:01:26.9]} 40... Bb6 {[%clk 0:00:37.7]} 41. Ne2 {[%clk 0:01:25.2]}
41... Rd1 {[%clk 0:00:36.6]} 42. Qc3 {[%clk 0:01:20.9]} 42... Qxc3 {[%clk
0:00:36]} 43. Nxc3 {[%clk 0:01:20.7]} 43... Rd3 {[%clk 0:00:35.6]} 44. Nb5
{[%clk 0:01:20]} 44... Kf6 {[%clk 0:00:27.4]} 45. Rc6 {[%clk 0:01:16.4]} 45...
Bd4 {[%clk 0:00:27.5]} 46. Nxd4 {[%clk 0:01:15.1]} 46... Rxd4 {[%clk 0:00:29.4]}
47. Kf3 {[%clk 0:01:16.6]} 47... Rd3+ {[%clk 0:00:19.7]} 48. Kg2 {[%clk
0:01:02.5]} 48... Rd2+ {[%clk 0:00:19.8]} 49. Kh3 {[%clk 0:01:00.3]} 49... Rxb2
{[%clk 0:00:20.6]} 50. Rc5 {[%clk 0:00:59.8]} 50... Re2 {[%clk 0:00:21.6]} 51.
Rxa5 {[%clk 0:00:57.5]} 51... Rxe4 {[%clk 0:00:22.8]} 52. g4 {[%clk 0:00:59]}
52... Re3+ {[%clk 0:00:22.4]} 53. Kg2 {[%clk 0:00:58.6]} 53... Kg6 {[%clk
0:00:21.5]} 54. Ra6 {[%clk 0:00:57.4]} 54... Rb3 {[%clk 0:00:20.6]} 55. a4
{[%clk 0:00:58.4]} 55... Ra3 {[%clk 0:00:21]} 56. a5 {[%clk 0:00:59]} 56... Kf6
{[%clk 0:00:22.4]} 57. Ra8 {[%clk 0:00:56.5]} 57... Ke5 {[%clk 0:00:22.6]} 58.
a6 {[%clk 0:00:54.9]} 58... Kf4 {[%clk 0:00:23.4]} 59. a7 {[%clk 0:00:45.5]}
59... Kxg4 {[%clk 0:00:22.7]} 60. Kf2 {[%clk 0:00:45]} 60... f5 {[%clk
0:00:23.1]} 61. Ke2 {[%clk 0:00:45.5]} 61... f4 {[%clk 0:00:24.4]} 62. Kd2
{[%clk 0:00:42.2]} 62... f3 {[%clk 0:00:24.8]} 63. Ke1 {[%clk 0:00:41.6]} 63...
Kg3 {[%clk 0:00:25.5]} 64. Rg8 {[%clk 0:00:42.3]} 64... f2+ {[%clk 0:00:26.7]}
65. Ke2 {[%clk 0:00:41.7]} 65... Ra2+ {[%clk 0:00:27.5]} 66. Ke3 {[%clk
0:00:35]} 66... f1=Q {[%clk 0:00:25.7]} 0-1

[Event "*** Titled Tuesday 3|2 Blitz"]
[Site "Chess.com"]
[Date "2016.05.03"]
[Round "6"]
[White "Hikaru"]
[Black "Gevorg_Harutjunyan"]
[Result "1/2-1/2"]
[WhiteElo "2853"]
[BlackElo "2619"]
[TimeControl "180+2"]
[EndTime "12:17:00 PDT"]
[Termination "Game drawn by repetition"]

1. c4 {[%clk 0:03:01.9]} 1... Nf6 {[%clk 0:03:00.1]} 2. Nc3 {[%clk 0:03:02.4]}
2... g6 {[%clk 0:03:01.6]} 3. e4 {[%clk 0:03:02.7]} 3... d6 {[%clk 0:03:02.9]}
4. d4 {[%clk 0:03:04.4]} 4... Bg7 {[%clk 0:03:04.4]} 5. f3 {[%clk 0:03:05.9]}
5... O-O {[%clk 0:03:05.7]} 6. Bg5 {[%clk 0:03:07.2]} 6... c5 {[%clk 0:03:06.4]}
7. d5 {[%clk 0:03:08.7]} 7... b5 {[%clk 0:03:07.1]} 8. Nxb5 {[%clk 0:03:05.4]}
8... Qb6 {[%clk 0:02:55.6]} 9. Qd2 {[%clk 0:03:05.6]} 9... Nbd7 {[%clk
0:02:49.9]} 10. Ne2 {[%clk 0:03:04.9]} 10... Rb8 {[%clk 0:02:45]} 11. Rb1 {[%clk
0:03:03.4]} 11... a6 {[%clk 0:02:33.5]} 12. Nbc3 {[%clk 0:03:04]} 12... Ne5
{[%clk 0:02:34.8]} 13. b3 {[%clk 0:02:58.9]} 13... e6 {[%clk 0:02:35.9]} 14. Ng3
{[%clk 0:02:53.4]} 14... exd5 {[%clk 0:02:33.1]} 15. Bxf6 {[%clk 0:02:53.6]}
15... Bxf6 {[%clk 0:02:30.2]} 16. Nxd5 {[%clk 0:02:54.8]} 16... Qd8 {[%clk
0:02:30.8]} 17. Nxf6+ {[%clk 0:02:56.1]} 17... Qxf6 {[%clk 0:02:31.5]} 18. Be2
{[%clk 0:02:57.8]} 18... h5 {[%clk 0:02:28.8]} 19. O-O {[%clk 0:02:58.4]} 19...
h4 {[%clk 0:02:28.5]} 20. Nh1 {[%clk 0:02:59.8]} 20... Nc6 {[%clk 0:02:21.1]}
21. Bd3 {[%clk 0:02:53]} 21... Nd4 {[%clk 0:02:13]} 22. Qe3 {[%clk 0:02:51.2]}
22... Re8 {[%clk 0:02:10.2]} 23. f4 {[%clk 0:02:47]} 23... Bd7 {[%clk
0:01:53.2]} 24. Nf2 {[%clk 0:02:46.8]} 24... Qg7 {[%clk 0:01:46.8]} 25. Rbe1
{[%clk 0:02:41.3]} 25... f5 {[%clk 0:01:46.2]} 26. Qd2 {[%clk 0:02:37.1]} 26...
Bc6 {[%clk 0:01:44.2]} 27. Re3 {[%clk 0:02:22.8]} 27... Rb7 {[%clk 0:01:41]} 28.
Rfe1 {[%clk 0:02:22.3]} 28... Rbe7 {[%clk 0:01:41]} 29. Kh1 {[%clk 0:01:54.4]}
29... Qh6 {[%clk 0:01:30.9]} 30. Nh3 {[%clk 0:01:37]} 30... fxe4 {[%clk
0:01:24.9]} 31. Ng5 {[%clk 0:01:24.8]} 31... h3 {[%clk 0:01:15.3]} 32. Rxh3
{[%clk 0:00:50.4]} 32... Qg7 {[%clk 0:01:03.4]} 33. Rh7 {[%clk 0:00:33.1]} 33...
exd3 {[%clk 0:00:56.4]} 34. Rxg7+ {[%clk 0:00:33.2]} 34... Kxg7 {[%clk
0:00:57.4]} 35. Rxe7+ {[%clk 0:00:33.6]} 35... Rxe7 {[%clk 0:00:59.1]} 36. Kg1
{[%clk 0:00:35.2]} 36... Re2 {[%clk 0:00:57.2]} 37. Qxd3 {[%clk 0:00:36.6]}
37... Rxg2+ {[%clk 0:00:57.8]} 38. Kf1 {[%clk 0:00:38.2]} 38... Rxa2 {[%clk
0:00:56.3]} 39. Qc3 {[%clk 0:00:30.6]} 39... Bg2+ {[%clk 0:00:54.7]} 40. Ke1
{[%clk 0:00:29.5]} 40... Re2+ {[%clk 0:00:51.8]} 41. Kd1 {[%clk 0:00:30.7]}
41... Rc2 {[%clk 0:00:50.5]} 42. Qe3 {[%clk 0:00:20]} 42... Re2 {[%clk
0:00:51.1]} 43. Qc3 {[%clk 0:00:19.4]} 43... Rc2 {[%clk 0:00:51.8]} 44. Qg3
{[%clk 0:00:16.1]} 44... Rc1+ {[%clk 0:00:44.2]} 45. Kxc1 {[%clk 0:00:13.3]}
45... Ne2+ {[%clk 0:00:45.2]} 46. Kd2 {[%clk 0:00:14.3]} 46... Nxg3 {[%clk
0:00:46.6]} 47. hxg3 {[%clk 0:00:16.2]} 47... Bc6 {[%clk 0:00:46.5]} 48. Ke3
{[%clk 0:00:16.6]} 48... Kf6 {[%clk 0:00:47.1]} 49. Ne4+ {[%clk 0:00:16.9]}
49... Ke6 {[%clk 0:00:44.2]} 50. g4 {[%clk 0:00:18.1]} 50... a5 {[%clk
0:00:45.5]} 51. Nc3 {[%clk 0:00:18]} 51... Bd7 {[%clk 0:00:44.6]} 52. Ke4 {[%clk
0:00:18.3]} 52... Bc6+ {[%clk 0:00:45.7]} 53. Ke3 {[%clk 0:00:19.9]} 53... Bd7
{[%clk 0:00:46.4]} 54. Nd5 {[%clk 0:00:20.2]} 54... Bc6 {[%clk 0:00:46.3]} 55.
Nc7+ {[%clk 0:00:20.2]} 55... Kd7 {[%clk 0:00:46.6]} 56. Nb5 {[%clk 0:00:21.7]}
56... d5 {[%clk 0:00:44.5]} 57. f5 {[%clk 0:00:21.7]} 57... gxf5 {[%clk
0:00:45.1]} 58. gxf5 {[%clk 0:00:23.6]} 58... dxc4 {[%clk 0:00:42.6]} 59. bxc4
{[%clk 0:00:23.8]} 59... a4 {[%clk 0:00:43.4]} 60. Na3 {[%clk 0:00:23.3]} 60...
Ke7 {[%clk 0:00:43.5]} 61. Kf4 {[%clk 0:00:25.2]} 61... Kf6 {[%clk 0:00:44.4]}
62. Nc2 {[%clk 0:00:26.8]} 62... Bd7 {[%clk 0:00:44.6]} 63. Ne3 {[%clk
0:00:28.1]} 63... Bc6 {[%clk 0:00:31.4]} 64. Nc2 {[%clk 0:00:27.2]} 64... Bd7
{[%clk 0:00:31.7]} 65. Ne3 {[%clk 0:00:28.2]} 65... Bc6 {[%clk 0:00:33.2]} 66.
Nc2 {[%clk 0:00:29.2]} 1/2-1/2

[Event "*** Titled Tuesday 3|2 Blitz"]
[Site "Chess.com"]
[Date "2016.05.03"]
[Round "6"]
[White "Makalexa"]
[Black "charlescandycampbell"]
[Result "1-0"]
[WhiteElo "2099"]
[BlackElo "2049"]
[TimeControl "180+2"]
[EndTime "12:17:04 PDT"]
[Termination "Makalexa won by checkmate"]

1. e4 {[%clk 0:03:00.7]} 1... c6 {[%clk 0:02:53.9]} 2. d4 {[%clk 0:02:58.1]}
2... d5 {[%clk 0:02:55.1]} 3. Nc3 {[%clk 0:02:58.7]} 3... dxe4 {[%clk
0:02:56.1]} 4. Nxe4 {[%clk 0:02:59.7]} 4... Bf5 {[%clk 0:02:57.2]} 5. Ng3 {[%clk
0:02:57.1]} 5... Bg6 {[%clk 0:02:58.8]} 6. h4 {[%clk 0:02:57.9]} 6... h6 {[%clk
0:02:59.6]} 7. h5 {[%clk 0:02:58.3]} 7... Bh7 {[%clk 0:03:00.3]} 8. Nf3 {[%clk
0:02:59.5]} 8... Nd7 {[%clk 0:03:00.7]} 9. Bd3 {[%clk 0:02:59.5]} 9... Bxd3
{[%clk 0:03:01.2]} 10. Qxd3 {[%clk 0:03:01.4]} 10... Qc7 {[%clk 0:03:01.8]} 11.
Bd2 {[%clk 0:03:01.4]} 11... e6 {[%clk 0:03:02.7]} 12. O-O-O {[%clk 0:03:01.6]}
12... Ngf6 {[%clk 0:03:04]} 13. Ne4 {[%clk 0:03:01.3]} 13... O-O-O {[%clk
0:03:05.5]} 14. g3 {[%clk 0:03:01.4]} 14... Nc5 {[%clk 0:03:06.9]} 15. Nxc5
{[%clk 0:03:00.4]} 15... Bxc5 {[%clk 0:03:08.4]} 16. c4 {[%clk 0:02:59.3]} 16...
Bd6 {[%clk 0:03:08.8]} 17. Bc3 {[%clk 0:02:54.1]} 17... Rhe8 {[%clk 0:03:04.7]}
18. Qc2 {[%clk 0:02:45.7]} 18... c5 {[%clk 0:03:00.8]} 19. d5 {[%clk 0:02:45]}
19... e5 {[%clk 0:01:58.4]} 20. Nh4 {[%clk 0:02:45]} 20... Qd7 {[%clk
0:01:47.1]} 21. Nf5 {[%clk 0:02:40.8]} 21... Bf8 {[%clk 0:01:47.8]} 22. Rde1
{[%clk 0:01:45.3]} 22... e4 {[%clk 0:01:42.9]} 23. Bxf6 {[%clk 0:01:44.7]} 23...
gxf6 {[%clk 0:01:42]} 24. g4 {[%clk 0:01:45]} 24... Re5 {[%clk 0:01:27.5]} 25.
Rxe4 {[%clk 0:01:39.9]} 25... Rxe4 {[%clk 0:01:28.1]} 26. Qxe4 {[%clk
0:01:39.5]} 26... Re8 {[%clk 0:01:30]} 27. Qc2 {[%clk 0:01:34]} 27... Re5 {[%clk
0:01:23.6]} 28. Rd1 {[%clk 0:01:26]} 28... Kd8 {[%clk 0:01:05.3]} 29. a3 {[%clk
0:01:21.4]} 29... Qe8 {[%clk 0:01:05.4]} 30. Qd2 {[%clk 0:01:14.7]} 30... b6
{[%clk 0:01:03.6]} 31. d6 {[%clk 0:01:08.2]} 31... Re2 {[%clk 0:01:03.9]} 32.
Qd5 {[%clk 0:01:03.5]} 32... Qe4 {[%clk 0:01:00.7]} 33. Qxe4 {[%clk 0:00:50.2]}
33... Rxe4 {[%clk 0:01:01.1]} 34. Ne3 {[%clk 0:00:48.2]} 34... Kd7 {[%clk
0:01:02]} 35. Kc2 {[%clk 0:00:45.1]} 35... Bxd6 {[%clk 0:01:01.5]} 36. Nf5
{[%clk 0:00:44.2]} 36... Re6 {[%clk 0:00:59.4]} 37. Nxh6 {[%clk 0:00:45.1]}
37... Ke8 {[%clk 0:00:56.4]} 38. Nf5 {[%clk 0:00:42.1]} 38... Bf4 {[%clk
0:00:46.6]} 39. Ng7+ {[%clk 0:00:42.3]} 39... Ke7 {[%clk 0:00:46.9]} 40. Nxe6
{[%clk 0:00:42.9]} 40... fxe6 {[%clk 0:00:48.3]} 41. Kd3 {[%clk 0:00:42.1]}
41... f5 {[%clk 0:00:47.1]} 42. gxf5 {[%clk 0:00:40.5]} 42... exf5 {[%clk
0:00:48.4]} 43. Rh1 {[%clk 0:00:39.6]} 43... Bh6 {[%clk 0:00:49]} 44. Rg1 {[%clk
0:00:40.8]} 44... Kf7 {[%clk 0:00:44.4]} 45. Rg6 {[%clk 0:00:41.4]} 45... Bg7
{[%clk 0:00:45.8]} 46. b3 {[%clk 0:00:40.8]} 46... Bd4 {[%clk 0:00:46.8]} 47. f3
{[%clk 0:00:40.7]} 47... Bb2 {[%clk 0:00:47.4]} 48. a4 {[%clk 0:00:41.1]} 48...
Bd4 {[%clk 0:00:47.2]} 49. Rc6 {[%clk 0:00:41.6]} 49... Kg7 {[%clk 0:00:46.1]}
50. Ke2 {[%clk 0:00:40.3]} 50... Bc3 {[%clk 0:00:44.7]} 51. Kf1 {[%clk
0:00:41.4]} 51... Bd2 {[%clk 0:00:40.6]} 52. Kg2 {[%clk 0:00:42.3]} 52... Be3
{[%clk 0:00:41.8]} 53. Kh3 {[%clk 0:00:43]} 53... Bd2 {[%clk 0:00:41.3]} 54. Kh4
{[%clk 0:00:43.5]} 54... Be3 {[%clk 0:00:42.5]} 55. h6+ {[%clk 0:00:39.3]} 55...
Bxh6 {[%clk 0:00:39.1]} 56. Kh5 {[%clk 0:00:35.1]} 56... Bd2 {[%clk 0:00:37]}
57. Rc7+ {[%clk 0:00:36.2]} 57... Kf6 {[%clk 0:00:38.2]} 58. Rxa7 {[%clk
0:00:35.2]} 58... Ke5 {[%clk 0:00:39.4]} 59. Rb7 {[%clk 0:00:34.8]} 59... Ba5
{[%clk 0:00:40.3]} 60. Kg5 {[%clk 0:00:33.4]} 60... Bd2+ {[%clk 0:00:40.2]} 61.
Kg6 {[%clk 0:00:33.7]} 61... Ba5 {[%clk 0:00:40.8]} 62. Rf7 {[%clk 0:00:34]}
62... f4 {[%clk 0:00:39.8]} 63. Rd7 {[%clk 0:00:33]} 63... Bc3 {[%clk
0:00:36.5]} 64. Kf7 {[%clk 0:00:32.5]} 64... Ba5 {[%clk 0:00:34.3]} 65. Rd5#
{[%clk 0:00:31.5]} 1-0

[Event "*** Titled Tuesday 3|2 Blitz"]
[Site "Chess.com"]
[Date "2016.05.03"]
[Round "6"]
[White "Colombiano07"]
[Black "alturas_pacificas"]
[Result "1-0"]
[WhiteElo "2270"]
[BlackElo "2174"]
[TimeControl "180+2"]
[EndTime "12:17:22 PDT"]
[Termination "Colombiano07 won by resignation"]

1. e4 {[%clk 0:03:01.9]} 1... g6 {[%clk 0:03:00.2]} 2. d4 {[%clk 0:03:02.1]}
2... Bg7 {[%clk 0:02:58.8]} 3. Nc3 {[%clk 0:03:03.2]} 3... d6 {[%clk 0:02:58.6]}
4. f4 {[%clk 0:03:03.8]} 4... a6 {[%clk 0:02:59.1]} 5. Nf3 {[%clk 0:03:03.1]}
5... Nf6 {[%clk 0:02:59.9]} 6. Bd3 {[%clk 0:03:03.3]} 6... O-O {[%clk
0:03:00.3]} 7. e5 {[%clk 0:03:03.7]} 7... dxe5 {[%clk 0:03:00.6]} 8. fxe5 {[%clk
0:03:04.1]} 8... Nd5 {[%clk 0:03:01.6]} 9. h4 {[%clk 0:03:05.6]} 9... h5 {[%clk
0:02:59.3]} 10. Ng5 {[%clk 0:03:02.1]} 10... Bg4 {[%clk 0:02:56.3]} 11. Be2
{[%clk 0:02:57.5]} 11... Bxe2 {[%clk 0:02:54.8]} 12. Qxe2 {[%clk 0:02:58.3]}
12... Nxc3 {[%clk 0:02:56.3]} 13. bxc3 {[%clk 0:02:58.8]} 13... Qd7 {[%clk
0:02:52.8]} 14. e6 {[%clk 0:02:52]} 14... fxe6 {[%clk 0:02:51.8]} 15. Qxe6+
{[%clk 0:02:48.3]} 15... Qxe6+ {[%clk 0:02:52]} 16. Nxe6 {[%clk 0:02:49.2]}
16... Rc8 {[%clk 0:02:49.1]} 17. Bf4 {[%clk 0:02:40.4]} 17... c5 {[%clk
0:02:44.4]} 18. Nc7 {[%clk 0:02:13]} 18... Ra7 {[%clk 0:02:41]} 19. Nd5 {[%clk
0:02:12.5]} 19... b5 {[%clk 0:02:33.6]} 20. O-O-O {[%clk 0:02:10.5]} 20... cxd4
{[%clk 0:02:29.2]} 21. cxd4 {[%clk 0:02:05.7]} 21... Nc6 {[%clk 0:02:30.6]} 22.
Rhe1 {[%clk 0:02:03.8]} 22... Nxd4 {[%clk 0:02:25.4]} 23. Nxe7+ {[%clk
0:02:00.1]} 23... Rxe7 {[%clk 0:02:26.3]} 24. Rxe7 {[%clk 0:02:00.5]} 24...
Rxc2+ {[%clk 0:02:27.8]} 25. Kb1 {[%clk 0:02:01]} 25... Rxg2 {[%clk 0:02:18.8]}
26. Rxg7+ {[%clk 0:02:00.1]} 26... Kxg7 {[%clk 0:02:16.5]} 27. Rxd4 {[%clk
0:02:01.7]} 27... Kf6 {[%clk 0:02:10.6]} 28. Rd5 {[%clk 0:01:48.9]} 28... Ke6
{[%clk 0:02:06.5]} 29. Rc5 {[%clk 0:01:47.3]} 29... Rg4 {[%clk 0:02:02.2]} 30.
Bg5 {[%clk 0:01:47.6]} 30... Rg1+ {[%clk 0:02:03.4]} 31. Kb2 {[%clk 0:01:47.8]}
31... Kd6 {[%clk 0:02:02.4]} 32. Rc8 {[%clk 0:01:45.8]} 32... a5 {[%clk
0:02:00]} 33. Rg8 {[%clk 0:01:43.4]} 33... Rg2+ {[%clk 0:01:56.6]} 34. Kb3
{[%clk 0:01:43.5]} 34... Rg3+ {[%clk 0:01:56.8]} 35. Kb2 {[%clk 0:01:43.9]}
35... Rg2+ {[%clk 0:01:58]} 36. Kb1 {[%clk 0:01:44.9]} 36... Rg1+ {[%clk
0:01:59.2]} 37. Kc2 {[%clk 0:01:45.8]} 37... Rg2+ {[%clk 0:02:00.7]} 38. Kc3
{[%clk 0:01:46.9]} 38... Rxa2 {[%clk 0:01:55.5]} 39. Rxg6+ {[%clk 0:01:47.8]}
39... Kd5 {[%clk 0:01:57.2]} 40. Rh6 {[%clk 0:01:46.6]} 40... b4+ {[%clk
0:01:58.4]} 41. Kb3 {[%clk 0:01:45]} 41... Ra3+ {[%clk 0:01:58.7]} 42. Kb2
{[%clk 0:01:46.1]} 42... Rh3 {[%clk 0:01:56.6]} 43. Rxh5 {[%clk 0:01:46.6]}
43... Kc4 {[%clk 0:01:58.2]} 44. Be7 {[%clk 0:01:42.1]} 44... Rh2+ {[%clk
0:01:58.3]} 45. Kc1 {[%clk 0:01:43.1]} 45... Rh1+ {[%clk 0:01:59.7]} 46. Kd2
{[%clk 0:01:43.4]} 46... Rh2+ {[%clk 0:02:01.3]} 47. Ke3 {[%clk 0:01:42.5]}
47... Rh3+ {[%clk 0:02:02.2]} 48. Ke4 {[%clk 0:01:42.6]} 48... a4 {[%clk
0:02:02.8]} 49. Rc5+ {[%clk 0:01:41.8]} 49... Kb3 {[%clk 0:02:03]} 50. Rb5
{[%clk 0:01:42.9]} 50... Kc3 {[%clk 0:01:54.2]} 51. Rc5+ {[%clk 0:01:29.2]}
51... Kb2 {[%clk 0:01:46.5]} 52. Rc4 {[%clk 0:01:29.9]} 52... a3 {[%clk
0:01:37.1]} 53. Rxb4+ {[%clk 0:01:27.9]} 53... Ka2 {[%clk 0:01:37.7]} 54. Ra4
{[%clk 0:01:26.5]} 54... Kb2 {[%clk 0:01:26.2]} 55. Kf5 {[%clk 0:01:06.2]} 55...
a2 {[%clk 0:01:25.4]} 56. Bf6+ {[%clk 0:01:03.5]} 56... Kb3 {[%clk 0:01:26.5]}
57. Ra8 {[%clk 0:01:01.7]} 57... Rh1 {[%clk 0:01:20.5]} 58. Kg6 {[%clk
0:00:56.3]} 58... Rg1+ {[%clk 0:01:20.5]} 59. Kf7 {[%clk 0:00:53.4]} 59... Rh1
{[%clk 0:01:14.5]} 60. Ra5 {[%clk 0:00:52.7]} 60... Rh3 {[%clk 0:01:01.7]} 61.
Kg6 {[%clk 0:00:44.4]} 61... Rg3+ {[%clk 0:01:00.9]} 62. Kh6 {[%clk 0:00:42.9]}
62... Rh3 {[%clk 0:01:01.4]} 63. h5 {[%clk 0:00:42.1]} 63... Rf3 {[%clk
0:00:58]} 64. Bg7 {[%clk 0:00:40]} 64... Rf2 {[%clk 0:00:51.7]} 65. Kh7 {[%clk
0:00:38.3]} 65... Kb4 {[%clk 0:00:51.7]} 66. Ra7 {[%clk 0:00:36.5]} 66... Kb3
{[%clk 0:00:52.7]} 67. h6 {[%clk 0:00:36.4]} 67... Rg2 {[%clk 0:00:51.5]} 68.
Kg8 {[%clk 0:00:36.7]} 68... Rc2 {[%clk 0:00:48.8]} 69. h7 {[%clk 0:00:35.8]}
69... Rc8+ {[%clk 0:00:49.8]} 70. Kf7 {[%clk 0:00:36]} 1-0

[Event "*** Titled Tuesday 3|2 Blitz"]
[Site "Chess.com"]
[Date "2016.05.03"]
[Round "6"]
[White "hellokostya"]
[Black "arna"]
[Result "1-0"]
[WhiteElo "2274"]
[BlackElo "2135"]
[TimeControl "180+2"]
[EndTime "12:17:27 PDT"]
[Termination "hellokostya won on time"]

1. d4 {[%clk 0:03:01.9]} 1... Nf6 {[%clk 0:02:53.9]} 2. c4 {[%clk 0:03:02.4]}
2... g6 {[%clk 0:02:54.3]} 3. Nc3 {[%clk 0:03:01.2]} 3... Bg7 {[%clk 0:02:50.4]}
4. e4 {[%clk 0:03:01.1]} 4... d6 {[%clk 0:02:50.3]} 5. f3 {[%clk 0:03:00.3]}
5... O-O {[%clk 0:02:49]} 6. Nge2 {[%clk 0:03:02]} 6... c6 {[%clk 0:02:50.2]} 7.
Be3 {[%clk 0:02:57.8]} 7... a6 {[%clk 0:02:42.1]} 8. g4 {[%clk 0:02:46.3]} 8...
b5 {[%clk 0:02:41.1]} 9. Ng3 {[%clk 0:02:39.9]} 9... bxc4 {[%clk 0:02:22.4]} 10.
g5 {[%clk 0:02:10]} 10... Nfd7 {[%clk 0:01:45.4]} 11. Bxc4 {[%clk 0:02:07.2]}
11... c5 {[%clk 0:01:42]} 12. d5 {[%clk 0:01:57]} 12... Ne5 {[%clk 0:01:25.5]}
13. Be2 {[%clk 0:01:56.8]} 13... c4 {[%clk 0:01:07.3]} 14. f4 {[%clk 0:00:51.6]}
14... Nd3+ {[%clk 0:01:07.5]} 15. Bxd3 {[%clk 0:00:52.5]} 15... cxd3 {[%clk
0:01:09.4]} 16. Qxd3 {[%clk 0:00:54.3]} 16... Nd7 {[%clk 0:01:03.1]} 17. Bd4
{[%clk 0:00:53.4]} 17... Nc5 {[%clk 0:01:03.7]} 18. Qe3 {[%clk 0:00:54.1]} 18...
Bxd4 {[%clk 0:00:58.6]} 19. Qxd4 {[%clk 0:00:56]} 19... Rb8 {[%clk 0:00:59.9]}
20. b3 {[%clk 0:00:42.8]} 20... Qa5 {[%clk 0:00:39.9]} 21. O-O {[%clk
0:00:38.7]} 21... Bh3 {[%clk 0:00:40.8]} 22. Rfc1 {[%clk 0:00:20.4]} 22... Rfc8
{[%clk 0:00:40.8]} 23. f5 {[%clk 0:00:20.8]} 23... Bg4 {[%clk 0:00:30.2]} 24.
Rab1 {[%clk 0:00:21.5]} 24... Qa3 {[%clk 0:00:25.6]} 25. h4 {[%clk 0:00:20.6]}
25... Nd7 {[%clk 0:00:19.4]} 26. h5 {[%clk 0:00:20.8]} 26... gxh5 {[%clk
0:00:18.6]} 27. g6 {[%clk 0:00:20.3]} 27... hxg6 {[%clk 0:00:16.1]} 28. fxg6
{[%clk 0:00:22.2]} 28... fxg6 {[%clk 0:00:12.9]} 29. Nce2 {[%clk 0:00:23.1]}
29... Ne5 {[%clk 0:00:13.1]} 30. Qe3 {[%clk 0:00:21.6]} 30... Qxa2 {[%clk
0:00:08.7]} 31. Nf4 {[%clk 0:00:15.6]} 31... Rxc1+ {[%clk 0:00:07.7]} 32. Rxc1
{[%clk 0:00:16.5]} 32... Qxb3 {[%clk 0:00:08.3]} 33. Kf2 {[%clk 0:00:11]} 33...
Qb2+ {[%clk 0:00:08.7]} 34. Nge2 {[%clk 0:00:10.6]} 34... Rb3 {[%clk 0:00:07.2]}
35. Qa7 {[%clk 0:00:10.4]} 35... Kf8 {[%clk 0:00:05.8]} 36. Qa8+ {[%clk
0:00:08.6]} 36... Rb8 {[%clk 0:00:05.5]} 37. Qxa6 {[%clk 0:00:10.1]} 37... Nf7
{[%clk 0:00:03.4]} 38. Qc4 {[%clk 0:00:09.8]} 38... Ne5 {[%clk 0:00:03.7]} 39.
Qc3 {[%clk 0:00:09.2]} 39... Qb6+ {[%clk 0:00:05.6]} 40. Kg2 {[%clk 0:00:09.3]}
40... Kf7 {[%clk 0:00:07.2]} 41. Rf1 {[%clk 0:00:09.8]} 41... Kg7 {[%clk
0:00:07]} 42. Kg3 {[%clk 0:00:08.6]} 42... Qb3 {[%clk 0:00:07.5]} 43. Kg2 {[%clk
0:00:09.7]} 43... Qxc3 {[%clk 0:00:08.3]} 44. Nxc3 {[%clk 0:00:11.6]} 44... Rb3
{[%clk 0:00:08.9]} 45. Rc1 {[%clk 0:00:12.3]} 45... Rb2+ {[%clk 0:00:09.7]} 46.
Kg3 {[%clk 0:00:13.2]} 46... g5 {[%clk 0:00:10.9]} 47. Ng2 {[%clk 0:00:09.1]}
47... Rb3 {[%clk 0:00:09.8]} 48. Ne3 {[%clk 0:00:08.8]} 48... Bd7 {[%clk
0:00:09.6]} 49. Rc2 {[%clk 0:00:06.5]} 49... h4+ {[%clk 0:00:09.2]} 50. Kh2
{[%clk 0:00:07.1]} 50... Kg6 {[%clk 0:00:09.8]} 51. Ned1 {[%clk 0:00:06.6]}
51... g4 {[%clk 0:00:09]} 52. Ra2 {[%clk 0:00:07.4]} 52... Kf6 {[%clk 0:00:07]}
53. Rf2+ {[%clk 0:00:07.9]} 53... Kg5 {[%clk 0:00:07.7]} 54. Ra2 {[%clk
0:00:09.8]} 54... g3+ {[%clk 0:00:08.6]} 55. Kg2 {[%clk 0:00:10.9]} 55... Nc4
{[%clk 0:00:07.5]} 56. Ra8 {[%clk 0:00:11.1]} 56... h3+ {[%clk 0:00:07]} 57.
Kxg3 {[%clk 0:00:11.4]} 57... Nd2 {[%clk 0:00:07.1]} 58. Rg8+ {[%clk 0:00:11.8]}
58... Kf6 {[%clk 0:00:08.4]} 59. Kh2 {[%clk 0:00:11]} 59... Ke5 {[%clk 0:00:05]}
60. Rh8 {[%clk 0:00:10.5]} 60... Nxe4 {[%clk 0:00:03.5]} 61. Rh5+ {[%clk
0:00:06.8]} 1-0